Cogmind - Beta 13 @@@ ROGUE MODE // 2024.07.14 @ 18:29:50 Player: weedlord420 Result: Destroyed by Y-54 Guardian with Gatling Laser Performance ------------- Evolutions (3) 1500 Regions Visited (11) 2200 Robots Destroyed (221) 1105 Value Destroyed (7836) 7836 Prototype IDs (19) 380 Alien Tech Used (0) 0 Bonus (2374) 2374 TOTAL SCORE: 15395 Bonus ------- High Alert Combat Kills 1060 Follower Combat Kills 56 Entered Garrisons 200 Used RIF Installer 1000 Aligned with FarCom 300 Friendly Fire -242 Cogmind --------- Core Integrity 0/700 Matter 299/300 Energy 98/100 System Corruption 5% Temperature Cool (12) Movement Core (50) Location -7/Lower Caves Parts ------- > --- POWER (1) -------- (None) > --- PROPULSION (2) --- (None) > --- UTILITY (8) ------ Improved Heat Sink Advanced Targeting Computer Armor Integrity Analyzer Hacking Suite Makeshift System Shield > --- WEAPON (2) ------- (None) > --- INVENTORY (5) ---- Improved Propulsion Shielding Relay Coupler [Sentry] (25) Firepult Peak State ------------ > --- POWER ------------ Light Quantum Reactor > --- PROPULSION ------- Improved Titanium Leg Improved Titanium Leg > --- UTILITY ---------- Cooling System Medium Storage Unit Machine Analyzer Improved Signal Interpreter Core Analyzer Armor Integrity Analyzer Hacking Suite Hacking Suite > --- WEAPON ----------- Firepult > --- INVENTORY -------- Cryofiber Web Improved Heat Sink Improved Heat Sink Improved Propulsion Shielding Improved Medium Armor Plating Relay Coupler [Sentry] System Restoration Module Improved Grenade Launcher [Rating: 62] Favorites ----------- Power Improved Ion Engine Engine Improved Ion Engine Power Core Light Nuclear Core Reactor Light Quantum Reactor Propulsion Light Treads Treads Light Treads Leg Improved Titanium Leg Wheel Wheel Utility Hacking Suite Device Improved Heat Sink Storage Medium Storage Unit Processor Armor Integrity Analyzer Hackware Hacking Suite Protection Light Armor Plating Weapon Enhanced Autogun Energy Gun Gatling Laser Energy Cannon Particle Cannon Ballistic Gun Enhanced Autogun Launcher Improved Grenade Launcher Build | -11 -10 -10 -9 -9 -9 -8 -8 -7 -7 -7 -7 ------- Run | Yrd Mat Min Mat Min Exi Min Mat Fac Gar Fac Low Slots Evolved 6 | . . . 2 . . . 2 2 . . . Power . | . . . . . . . . . . . . Propulsion . | . . . . . . . . . . . . Utility 6 | . . . 2 . . . 2 2 . . . Weapon . | . . . . . . . . . . . . Parts Attached 206 | 6 8 5 26 5 9 4 38 33 38 20 14 Power 14 | 1 1 . 3 . . . 2 2 4 1 . Engine 11 | 1 1 . 3 . . . 1 2 3 . . Core 1 | . . . . . . . 1 . . . . Reactor 2 | . . . . . . . . . 1 1 . Propulsion 28 | 2 . 2 7 . 1 . 7 . 5 2 2 Treads 22 | 2 . 2 7 . 1 . 7 . 3 . . Leg 4 | . . . . . . . . . 2 2 . Wheel 2 | . . . . . . . . . . . 2 Hover . | . . . . . . . . . . . . Flight . | . . . . . . . . . . . . Utility 77 | 1 3 1 7 1 4 2 15 16 9 12 6 Device 31 | . 1 . 1 . 3 1 9 4 4 4 4 Storage 3 | 1 1 . . . . . . . . 1 . Processor 5 | . . . . . . . . . 1 4 . Hackware 5 | . . . 1 . . . 1 1 1 . 1 Protection 33 | . 1 1 5 1 1 1 5 11 3 3 1 Artifact . | . . . . . . . . . . . . Weapon 87 | 2 4 2 9 4 4 2 14 15 20 5 6 Energy Gun 5 | . . . . 2 . . . 1 1 . 1 Energy Cannon 22 | . . . 3 1 2 . 2 3 4 4 3 Ballistic Gun 44 | 2 3 1 3 . 2 2 10 9 11 . 1 Ballistic Cannon . | . . . . . . . . . . . . Launcher 16 | . 1 1 3 1 . . 2 2 4 1 1 Special Weapon . | . . . . . . . . . . . . Impact Weapon . | . . . . . . . . . . . . Slashing Weapon . | . . . . . . . . . . . . Piercing Weapon . | . . . . . . . . . . . . Special Melee Weapon . | . . . . . . . . . . . . Unidentified Prototypes 4 | . . . . . 3 . 1 . . . . Parts Lost 35 | . 1 . 4 1 . 1 4 1 10 5 8 Power 3 | . 1 . 1 . . . . . . . 1 Propulsion 6 | . . . . . . . . . 3 . 3 Utility 21 | . . . 2 1 . 1 4 . 6 4 3 Weapon 5 | . . . 1 . . . . 1 1 1 1 Highest Loss Streak 4 | . 1 . 3 1 . 1 1 1 3 2 4 To Critical Strikes 1 | . . . . . . . . . . . 1 Average Slot Usage (%) 96 | . 97 100 99 100 95 91 95 99 97 96 70 Engine 7 | . 13 14 10 11 11 11 5 7 7 1 . Treads 16 | . 28 28 21 22 22 22 17 15 12 . . Leg 2 | . . . . . . . . . 1 14 8 Device 14 | . 5 . 4 11 13 13 27 15 21 15 10 Storage 9 | . 14 14 11 11 11 11 9 7 7 5 5 Processor 3 | . . . . . . . . . 4 16 15 Hackware 9 | . . . 11 11 8 . . 13 17 15 21 Protection 12 | . 6 14 16 11 10 11 13 23 8 4 . Energy Gun 1 | . . . . 3 8 . . . 2 6 3 Energy Cannon 3 | . . . 10 18 2 . . . 1 6 . Ballistic Gun 11 | . 27 28 11 . 6 22 17 13 8 . . Naked Turns . | . . . . . . . . . . . . Heaviest Build 61 | 12 24 24 29 29 46 39 61 61 57 50 36 Greatest Support 56 | 40 40 40 40 40 40 40 44 40 56 56 40 Greatest Overweight (x) 3 | . . . 1 . 1 . 1 1 1 1 3 Average Overweight (x) . | . . . . . . . . . . . . Largest Inventory Capacity 10 | 8 10 10 10 10 10 10 10 10 10 10 10 Average Capacity 9 | 5 8 10 10 10 10 10 10 10 10 8 9 Most Carried 10 | 5 9 10 10 10 10 10 10 10 10 10 10 Average Carried 8 | 3 5 9 8 9 6 8 9 9 9 7 8 Final Capacity 10 | 8 10 10 10 10 10 10 10 10 10 10 5 Final Carried 10 | . 9 10 10 10 4 10 10 10 9 10 4 Class Distribution -------------------- 36% | Scavenger-Mutant 35% | Hacker-Mutant 28% | Mutant Dominant Class ---------------- Mutant | -10/Materials Mutant | -10/Mines Scavenger-Mutant | -9/Materials Scavenger-Mutant | -9/Mines Scavenger-Mutant | -9/Exiles Scavenger-Mutant | -8/Mines Mutant | -8/Materials Hacker-Mutant | -7/Factory Hacker-Mutant | -7/Garrison Hacker-Mutant | -7/Factory Hacker-Mutant | -7/Lower Caves Resources | -11 -10 -10 -9 -9 -9 -8 -8 -7 -7 -7 -7 ----------- Run | Yrd Mat Min Mat Min Exi Min Mat Fac Gar Fac Low Matter Collected 5380 | 190 288 212 854 65 . 286 1080 818 1194 133 260 Remotely . | . . . . . . . . . . . . Salvage Created 8651 | . 547 88 1759 159 . 382 1476 1164 1528 1262 286 Parts 394 | . 33 9 104 1 . 17 66 52 58 47 7 Haulers Intercepted 12 | . 2 . 6 . . . 2 1 . 1 . Recyclers Shooed 1 | . . . . . . . 1 . . . . Parts Field Recycled . | . . . . . . . . . . . . Retrieved Matter . | . . . . . . . . . . . . Parts Self-Destructed 4 | . . . . . . . . . . . 4 Prevented . | . . . . . . . . . . . . Kills | -11 -10 -10 -9 -9 -9 -8 -8 -7 -7 -7 -7 ------- Run | Yrd Mat Min Mat Min Exi Min Mat Fac Gar Fac Low Combat Hostiles Destroyed 165 | . 12 7 31 2 . 8 21 18 41 17 8 Guns 92 | . 12 4 21 . . 7 17 9 16 3 3 Cannons 23 | . . . 8 2 . 1 . 1 8 3 . AOE 40 | . . 3 2 . . . 3 6 14 8 4 Classes Destroyed 17 | . 6 1 4 . . 1 2 2 . 1 . Worker 11 | . 2 . 4 . . . 2 1 . 2 . Builder 6 | . 1 . 1 . . . . 1 . 3 . Tunneler 3 | . . . . . . . 2 1 . . . Hauler 12 | . 2 . 6 . . . 2 1 . 1 . Recycler 10 | . . . 2 1 . . 3 3 . 1 . Operator 5 | . 2 . 1 . . . 1 1 . . . Watcher 8 | . . . 3 . . . 2 . 1 2 . Swarmer 47 | . 6 6 8 1 . 2 3 4 14 . 3 Grunt 72 | . 6 . 12 2 . 6 12 3 22 7 2 Brawler 3 | . . . . . . . 1 . . 2 . Duelist 7 | . . . 1 . . . . 1 1 2 2 Protector 1 | . . . . . . . . . . 1 . Sentry 26 | . . . 10 . . . 5 4 4 2 1 Demolisher 1 | . . 1 . . . . . . . . . Hunter 3 | . . . . . . . . 2 . 1 . Programmer 6 | . . . . . . . . 4 . 2 . Zionite 1 | . . . . . . 1 . . . . . Best Kill Streak 8 | . 5 4 7 1 . 3 7 4 5 8 6 Combat Bots Only 6 | . 4 4 5 1 . 3 6 4 5 6 6 Max Kills in Single Turn 4 | . 2 3 3 1 . 2 2 3 2 4 3 Gunslinging 1 | . . . 1 . . . . . . . . Exploded 3 | . . 3 2 . . . 2 3 2 3 2 Melee . | . . . . . . . . . . . . Uniques/NPCs Destroyed . | . . . . . . . . . . . . Combat | -11 -10 -10 -9 -9 -9 -8 -8 -7 -7 -7 -7 -------- Run | Yrd Mat Min Mat Min Exi Min Mat Fac Gar Fac Low Hostile Shots Fired 1104 | . 55 17 154 23 . 30 115 141 341 115 113 Missed 371 | . 17 2 44 2 . 8 35 57 104 49 53 Damage Taken 8905 | . 400 239 1423 236 . 375 1097 1287 2170 919 759 Core 1311 | . 56 52 184 23 . 84 204 125 187 142 254 Absorbed by Shields 621 | . . . . . . . 128 . 493 . . Redirected to Shielding 185 | . . . . . . . 13 139 24 9 . Regen/Repaired (Parts) 397 | . . . 202 . . . 146 49 . . . Core Remaining (%) 61 | 100 . 56 . . . 27 62 . . . . Volleys Fired 568 | . 49 8 118 9 . 25 109 71 125 43 11 Largest 2 | . 2 2 2 2 . 2 2 2 2 2 2 Hottest 250 | . 53 56 136 136 . 250 250 250 250 250 250 Shots Fired 1052 | . 98 16 235 16 . 49 211 128 212 71 16 Gun 868 | . 97 15 190 . . 48 204 116 160 28 10 Cannon 148 | . . . 41 14 . 1 3 9 36 42 2 Launcher 36 | . 1 1 4 2 . . 4 3 16 1 4 Special . | . . . . . . . . . . . . Kinetic 795 | . 97 15 190 . . 48 204 108 132 . 1 Thermal 221 | . . . 41 14 . 1 3 17 64 70 11 Explosive 36 | . 1 1 4 2 . . 4 3 16 1 4 Electromagnetic . | . . . . . . . . . . . . Robot Hit Streak 27 | . 17 8 15 3 . 27 20 22 17 16 17 Robot Miss Streak 7 | . 6 1 3 5 . 4 4 3 6 7 2 Penetration Max . | . . . . . . . . . . . . Secondary Targets 12 | . 2 . 3 . . 3 2 . 2 . . Max Gunslinging Chain 1 | . 1 . 1 . . 1 1 . 1 . . Shots Hit Robots 679 | . 59 13 163 5 . 36 126 93 131 41 12 Core Hits 408 | . 26 8 63 5 . 17 55 50 107 58 19 Critical Kills . | . . . . . . . . . . . . Critical Parts Destroyed 4 | . 1 . 1 . . 1 1 . . . . Critical Strikes 5 | . 1 . 1 . . 1 1 1 . . . Burn 1 | . . . . . . . . 1 . . . Destroy 4 | . 1 . 1 . . 1 1 . . . . Melee Attacks . | . . . . . . . . . . . . Impact . | . . . . . . . . . . . . Slashing . | . . . . . . . . . . . . Piercing . | . . . . . . . . . . . . Sneak Attacks . | . . . . . . . . . . . . Combat Hostiles . | . . . . . . . . . . . . Follow-up Attacks . | . . . . . . . . . . . . Damage Inflicted 17201 | . 848 321 2914 208 . 805 2706 2174 4161 2396 668 Guns 10078 | . 847 198 2084 . . 533 2148 1518 2025 526 199 Cannons 2188 | . . . 474 102 . 57 69 129 591 734 32 Explosions 4904 | . . 123 356 106 . 190 485 527 1545 1135 437 Melee . | . . . . . . . . . . . . Ramming 31 | . 1 . . . . 25 4 . . 1 . Kinetic 8661 | . 847 198 2084 . . 533 2148 1336 1515 . . Thermal 6171 | . . . 474 102 . 247 392 789 1627 2130 410 Explosive 2338 | . . 123 356 106 . . 162 49 1019 265 258 Electromagnetic . | . . . . . . . . . . . . Impact . | . . . . . . . . . . . . Slashing . | . . . . . . . . . . . . Piercing . | . . . . . . . . . . . . Highest Corruption 7 | . . . . . . . 1 1 . 7 7 Average Corruption 2 | . . . . . . . 1 1 . 3 5 Corruption Purged 6 | . . . . . . . . 2 . 2 2 Corruption Blocked . | . . . . . . . . . . . . Effects 44 | . . . . . . . 4 12 . 6 22 Message Errors 12 | . . . . . . . 2 3 . . 7 Matter Fused 5 | . . . . . . . . 1 . 1 3 Heat Flow Errors 6 | . . . . . . . 2 1 . . 3 Energy Discharges 10 | . . . . . . . . 4 . 2 4 Parts Rejected 2 | . . . . . . . . . . . 2 Parts Fused 1 | . . . . . . . . 1 . . . Data Loss (minor) 2 | . . . . . . . . . . 2 . Data Loss (major) 2 | . . . . . . . . 1 . . 1 Misfires 2 | . . . . . . . . 1 . . 1 Alerts 2 | . . . . . . . . . . 1 1 Overload Shots . | . . . . . . . . . . . . Overflow Damage 97 | . . 6 . . . 1 . . 43 37 10 Projectiles 19 | . . . . . . . . . 19 . . Explosions 77 | . . 6 . . . . . . 24 37 10 Melee 1 | . . . . . . 1 . . . . . Knockbacks . | . . . . . . . . . . . . Impact . | . . . . . . . . . . . . Kinetic . | . . . . . . . . . . . . Secondary . | . . . . . . . . . . . . Self-Inflicted Damage 404 | . . . . 68 . 62 60 . 78 111 25 Shots 19 | . . . . 2 . 4 2 . 5 4 2 Rammed 4 | . . . . . . 3 1 . . . . Targets Rammed 7 | . 1 . 1 . . 3 1 . . 1 . Kicked 1 | . . . . . . . . . . 1 . Crushed 2 | . 1 . 1 . . . . . . . . Highest Temperature 408 | . 14 3 198 240 . 276 213 280 408 323 232 Average Temperature 68 | . 5 2 35 98 . 78 76 131 146 97 84 Received Heat Transfer 2626 | . 135 . 570 6 . 144 574 153 720 123 201 Siege Activations . | . . . . . . . . . . . . Robots Corrupted . | . . . . . . . . . . . . Combat Hostiles . | . . . . . . . . . . . . Parts Fried . | . . . . . . . . . . . . Impact Corruptions 1 | . . . . . . 1 . . . . . Robots Melted 12 | . . . . . . . 2 2 3 4 1 Combat Hostiles 10 | . . . . . . . 1 2 3 3 1 Parts Melted 67 | . . . 2 . . 1 4 18 15 22 5 Heat Transferred 21827 | . . . 851 185 . 1040 1760 3330 6090 6921 1650 Parts Sabotaged . | . . . . . . . . . . . . Parts Stolen . | . . . . . . . . . . . . Parts Stripped . | . . . . . . . . . . . . Power Chain Reactions . | . . . . . . . . . . . . Alert | -11 -10 -10 -9 -9 -9 -8 -8 -7 -7 -7 -7 ------- Run | Yrd Mat Min Mat Min Exi Min Mat Fac Gar Fac Low Peak Influence 1798 | . 303 142 429 330 . 202 432 352 1798 989 . Initial 943 | . . 37 . 166 . . . 196 122 943 . Average 339 | . 151 64 218 120 . 53 190 98 941 746 . Maximum Alert Level 5 | . 1 . 2 1 . 1 2 1 5 3 . Low Security (%) 51 | 100 76 100 39 82 . 89 54 86 2 . . Level 1 21 | . 23 . 52 17 . 10 44 13 14 . . Level 2 8 | . . . 8 . . . . . 10 42 . Level 3 12 | . . . . . . . . . 31 57 . Level 4 5 | . . . . . . . . . 37 . . Level 5 . | . . . . . . . . . 2 . . High Security . | . . . . . . . . . . . . Max Security . | . . . . . . . . . . . . Squads Dispatched 24 | . 1 . 3 . . . 3 10 . 7 . Investigation 5 | . . . 2 . . . . 2 . 1 . Extermination 6 | . . . . . . . . 4 . 2 . Reinforcement 6 | . 1 . 1 . . . 1 1 . 2 . Assault 3 | . . . . . . . 1 . . 2 . Garrison 4 | . . . . . . . 1 3 . . . Intercept . | . . . . . . . . . . . . Searches Triggered . | . . . . . . . . . . . . Construction Impeded 1 | . . . . . . . . . . 1 . Haulers Reinforced . | . . . . . . . . . . . . Active Scanning Responses . | . . . . . . . . . . . . Cargo Convoy Interrupts . | . . . . . . . . . . . . Stealth | -11 -10 -10 -9 -9 -9 -8 -8 -7 -7 -7 -7 --------- Run | Yrd Mat Min Mat Min Exi Min Mat Fac Gar Fac Low Distress Signals 8 | . . . 5 . . . 2 . 1 . . Communications Jammed . | . . . . . . . . . . . . Distress Signals . | . . . . . . . . . . . . Times Spotted 220 | . 26 5 45 6 . 9 34 17 43 23 12 Peak Tracking Total 9 | . 5 3 5 4 . 3 9 4 7 8 5 Tactical Retreats 11 | . 2 . 1 1 . 1 2 . 2 . 2 Traps | -11 -10 -10 -9 -9 -9 -8 -8 -7 -7 -7 -7 ------- Run | Yrd Mat Min Mat Min Exi Min Mat Fac Gar Fac Low Traps Triggered 14 | . 1 . 1 . . . 1 4 6 1 . Indirectly . | . . . . . . . . . . . . Trap Hack Attempts . | . . . . . . . . . . . . Triggered . | . . . . . . . . . . . . Disarmed . | . . . . . . . . . . . . Reprogrammed . | . . . . . . . . . . . . Reused . | . . . . . . . . . . . . Traps Extracted . | . . . . . . . . . . . . Installed . | . . . . . . . . . . . . Triggered . | . . . . . . . . . . . . Machines | -11 -10 -10 -9 -9 -9 -8 -8 -7 -7 -7 -7 ---------- Run | Yrd Mat Min Mat Min Exi Min Mat Fac Gar Fac Low Machines Disabled 29 | . . 2 1 2 . . 3 4 5 11 1 Max in Single Turn 6 | . . 1 1 1 . . 1 4 1 6 1 Garrison Access 2 | . . . . . . . 1 . . 1 . Garrison Relay 4 | . . . . . . . . . 4 . . Machines Repaired . | . . . . . . . . . . . . Machines Dismantled . | . . . . . . . . . . . . Machines Sabotaged . | . . . . . . . . . . . . Overloaded Fab Kills . | . . . . . . . . . . . . Hacking | -11 -10 -10 -9 -9 -9 -8 -8 -7 -7 -7 -7 --------- Run | Yrd Mat Min Mat Min Exi Min Mat Fac Gar Fac Low Machines Accessed 44 | . 7 . 12 . . . 8 7 3 7 . Terminals 33 | . 7 . 10 . . . 5 3 3 5 . Fabricators 3 | . . . . . . . . 2 . 1 . Repair Stations 4 | . . . 2 . . . 1 1 . . . Recycling Units . | . . . . . . . . . . . . Scanalyzers 1 | . . . . . . . 1 . . . . Garrison Access 3 | . . . . . . . 1 1 . 1 . Total Hacks 121 | . 23 . 34 . . . 22 17 5 20 . Successful 61 | . 9 . 17 . . . 11 12 2 10 . Failed 59 | . 14 . 17 . . . 11 5 3 9 . Catastrophic 11 | . 4 . 1 . . . 3 1 . 2 . Database Lockouts 1 | . . . . . . . . . . 1 . Manual 34 | . 8 . 10 . 1 . 2 4 . 9 . Terminals 89 | . 23 . 28 . . . 10 8 5 15 . Fabricators 6 | . . . . . . . . 4 . 2 . Repair Stations 17 | . . . 6 . . . 7 4 . . . Recycling Units . | . . . . . . . . . . . . Scanalyzers 2 | . . . . . . . 2 . . . . Garrison Access 7 | . . . . . . . 3 1 . 3 . Terminal Hacks 35 | . 9 . 11 . . . 4 3 2 6 . Record 2 | . . . 1 . . . . . . 1 . Part Schematic 4 | . . . 2 . . . . 1 . 1 . Robot Analysis 3 | . 1 . 1 . . . . . . 1 . Prototype ID Bank 10 | . 4 . 2 . . . 2 . . 2 . Open Door 1 | . . . . . . . . . 1 . . Emergency Access Points 2 | . . . . . . . 1 . 1 . . Repair Station Index 1 | . . . . . . . 1 . . . . Alert Level 1 | . . . 1 . . . . . . . . Unreport Threat 4 | . . . 2 . . . . 1 . 1 . Locate Traps 4 | . 1 . 2 . . . . 1 . . . Registered Components 1 | . 1 . . . . . . . . . . Zone Layout 2 | . 2 . . . . . . . . . . Fabricator Hacks 6 | . . . . . . . . 4 . 2 . Load Schematic 3 | . . . . . . . . 2 . 1 . Build 3 | . . . . . . . . 2 . 1 . Repair Station Hacks 15 | . . . 6 . . . 5 4 . . . Scan Component 8 | . . . 3 . . . 3 2 . . . Repair 7 | . . . 3 . . . 2 2 . . . Recycling Unit Hacks . | . . . . . . . . . . . . Scanalyzer 2 | . . . . . . . 2 . . . . Insert Component 1 | . . . . . . . 1 . . . . Analyze 1 | . . . . . . . 1 . . . . Garrison Access Hacks 2 | . . . . . . . . 1 . 1 . Unlock Access 1 | . . . . . . . . 1 . . . Seal Access 1 | . . . . . . . . . . 1 . Unauthorized Hacks 1 | . . . . . . . . . . 1 . Terminals 1 | . . . . . . . . . . 1 . Assimilate 1 | . . . . . . . . . . 1 . Fabricators . | . . . . . . . . . . . . Repair Stations . | . . . . . . . . . . . . Recycling Units . | . . . . . . . . . . . . Scanalyzers . | . . . . . . . . . . . . Garrison Access . | . . . . . . . . . . . . Data Cores Recovered 1 | . 1 . . . . . . . . . . Used . | . . . . . . . . . . . . Hacking Detections 38 | . 7 . 11 . . . 7 5 1 7 . Full Trace Events 6 | . . . 1 . . . 1 2 1 1 . Feedback Events . | . . . . . . . . . . . . Feedback Blocked . | . . . . . . . . . . . . Robot Schematics Acquired . | . . . . . . . . . . . . Robots Built . | . . . . . . . . . . . . Authchips . | . . . . . . . . . . . . Time . | . . . . . . . . . . . . Total Robot Build Rating . | . . . . . . . . . . . . Part Schematics Acquired 5 | . . . 2 . . . 1 1 . 1 . Parts Built 4 | . . . . . . . . 3 . 1 . Authchips . | . . . . . . . . . . . . Time 230 | . . . . . . . . 157 . 73 . Total Part Build Rating 14 | . . . . . . . . 11 . 3 . Parts Repaired 7 | . . . 3 . . . 2 2 . . . Time 242 | . . . 78 . . . 76 88 . . . Parts Recycled . | . . . . . . . . . . . . Recycled Matter . | . . . . . . . . . . . . Retrieved Matter . | . . . . . . . . . . . . Retrieved Components . | . . . . . . . . . . . . Parts Scanalyzed 1 | . . . . . . . 1 . . . . Part Schematics Acquired 1 | . . . . . . . 1 . . . . Parts Damaged . | . . . . . . . . . . . . Bothacking | -11 -10 -10 -9 -9 -9 -8 -8 -7 -7 -7 -7 ------------ Run | Yrd Mat Min Mat Min Exi Min Mat Fac Gar Fac Low Used RIF Installer 2 | . . . . . . . . . 2 . . Zone Cloak 1 | . . . . . . . . . 1 . . Robots Hacked . | . . . . . . . . . . . . Non-combat . | . . . . . . . . . . . . Combat . | . . . . . . . . . . . . Robot Hacks Applied . | . . . . . . . . . . . . Relay Couplers Released 18 | . . . . . . . 4 . 14 . . Machine Destruction 18 | . . . . . . . 4 . 14 . . Fabnet Peak Effective % . | . . . . . . . . . . . . Robots Rewired 3 | . . . . . . . . . 3 . . Allies Hacked 1 | . . . . . . . . . . 1 . Hacks Repelled . | . . . . . . . . . . . . Allies | -11 -10 -10 -9 -9 -9 -8 -8 -7 -7 -7 -7 -------- Run | Yrd Mat Min Mat Min Exi Min Mat Fac Gar Fac Low Total Allies 8 | . . . . 4 . . . . 3 1 . Largest Group 4 | . . . . 4 2 . . . 3 1 . Highest-Rated Group 93 | . . . . 71 24 . . . 93 10 . Highest-Rated Ally 31 | . . . . 31 16 . . . 31 10 . Total Orders 3 | . . . . . 2 . . . . 1 . STAY 3 | . . . . . 2 . . . . 1 . Ally Attacks 35 | . . . . 13 . . . . 22 . . Total Damage 487 | . . . . 153 . . . . 334 . . Kills 5 | . . . . 4 . . . . 1 . . Allies Corrupted . | . . . . . . . . . . . . Allies Melted . | . . . . . . . . . . . . Intel | -11 -10 -10 -9 -9 -9 -8 -8 -7 -7 -7 -7 ------- Run | Yrd Mat Min Mat Min Exi Min Mat Fac Gar Fac Low Robot Analysis Total 3 | . 1 . 1 . . . . . . 1 . Derelict Logs Recovered 3 | . . 1 . 2 . . . . . . . Drone Launches . | . . . . . . . . . . . . Drone Recoveries . | . . . . . . . . . . . . Exploration | -11 -10 -10 -9 -9 -9 -8 -8 -7 -7 -7 -7 ------------- Run | Yrd Mat Min Mat Min Exi Min Mat Fac Gar Fac Low Turns Passed 17173 | 36 1227 914 2271 1329 476 1073 2036 2640 2317 2233 621 Spaces Moved 8116 | 48 647 498 1096 473 253 599 806 825 1005 1337 529 Core 201 | 47 . . . . . . . . . . 154 Treads 6018 | 1 647 498 1096 473 253 599 806 825 820 . . Legs 1849 | . . . . . . . . . 185 1337 327 Wheels 48 | . . . . . . . . . . . 48 Hover . | . . . . . . . . . . . . Flight . | . . . . . . . . . . . . Fastest Speed 50 | 50 160 160 160 160 160 160 145 170 110 110 50 Average Speed 168 | 52 160 160 160 160 175 160 186 246 183 147 103 Slowest Speed 250 | 160 160 160 240 160 240 160 250 250 250 200 200 Overloaded Moves . | . . . . . . . . . . . . Propulsion Burnouts . | . . . . . . . . . . . . Robots Hopped . | . . . . . . . . . . . . Cave-ins Triggered . | . . . . . . . . . . . . Exploration Rate (%) 68 | 3 100 98 98 90 60 96 64 21 95 25 72 Regions Visited 11 Branch Regions 5 Pre-discovered Areas 2 | . . 1 . 1 . . . . . . . Known Exits Taken 1 | . . . . . . . . 1 . . . Unknown Exits Taken 9 | 1 1 1 1 1 1 1 1 . . 1 . Scrap Searched 12 | . . 1 . 2 . 1 . . . . 8 Spaces Dug 53 | . 7 . . . . . 41 . . 5 . Terrain Destroyed 359 | . 7 7 35 12 . 3 85 60 97 32 21 Melee . | . . . . . . . . . . . . Projectile 14 | . . . . . . 1 1 . . 12 . AOE 345 | . 7 7 35 12 . 2 84 60 97 20 21 Terrain Rammed . | . . . . . . . . . . . . Walls Destroyed . | . . . . . . . . . . . . Machines Disabled . | . . . . . . . . . . . . Actions | -11 -10 -10 -9 -9 -9 -8 -8 -7 -7 -7 -7 --------- Run | Yrd Mat Min Mat Min Exi Min Mat Fac Gar Fac Low Total 10715 | 59 746 597 1373 1028 291 669 1211 1345 1284 1524 588 Wait 1571 | . 21 86 102 540 14 28 206 380 71 105 18 Move 8106 | 47 646 497 1095 472 252 598 805 825 1004 1336 529 Hop . | . . . . . . . . . . . . Pick Up 113 | 6 15 1 18 1 4 8 21 9 17 8 5 Fast Attach 40 | . 1 . . 1 . . 8 14 7 7 2 Attach 75 | 6 2 . 8 1 6 4 14 4 14 5 11 Detach 18 | . . . . . 2 1 3 2 2 5 3 Swap 91 | . 5 5 18 3 3 . 16 15 17 8 1 Drop 112 | . 6 . 13 1 10 2 28 21 17 6 8 Fire 568 | . 49 8 118 9 . 25 109 71 125 43 11 Melee . | . . . . . . . . . . . . Ram . | . . . . . . . . . . . . Kick 1 | . . . . . . . . . . 1 . Crush 6 | . 1 . 1 . . 3 1 . . . . Escape Stasis 8 | . . . . . . . . 4 4 . . Rewire 6 | . . . . . . . . . 6 . . Trap . | . . . . . . . . . . . . Miscellaneous . | . . . . . . . . . . . . Route ------- -11/Scrapyard -10/Materials (discovered 4 exits: *Mat x3 / [*Min]) -10/Mines (discovered 2 exits: *Mat x2) -9/Materials (discovered 4 exits: *Mat x3 / [*Min]) -9/Mines (discovered 3 exits: *Mat x2 / *Exi) -9/Exiles -8/Mines (discovered 2 exits: *Mat x2) -8/Materials (discovered 2 exits: *Fac x2) -7/Factory -7/Garrison (discovered 4 exits: *Fac x4) -7/Factory -7/Lower Caves History --------- Turn | Location | Event 2 | -11/Scrapyard | Met Revision 17 5 | -11/Scrapyard | Discovered new exit (range 15) 37 | -11/Scrapyard | Entered Materials 276 | -10/Materials | Discovered new exit (range 15) 307 | -10/Materials | Build established: Mutant 483 | -10/Materials | Discovered new exit (range 7) 1102 | -10/Materials | Discovered new exit (range 16) 1170 | -10/Materials | Discovered new exit (range 7) 1264 | -10/Materials | Entered Mines 1318 | -10/Mines | Met a Derelict bent on vengeance 1376 | -10/Mines | Assembled infested the area 1383 | -10/Mines | Received a Rocket Launcher from a helpful Derelict 1557 | -10/Mines | Discovered new exit (range 8) 2041 | -10/Mines | Discovered new exit (range 10) 2047 | -10/Mines | Learned location of Zion (-6) 2178 | -10/Mines | Entered Materials 2178 | -9/Materials | Evolved 2 slots: Utility x2 2491 | -9/Materials | Discovered new exit (range 14) 2565 | -9/Materials | Build established: Scavenger-Mutant 3187 | -9/Materials | Discovered new exit (range 16) 3369 | -9/Materials | Lost 3 parts (1p1u1w) 3424 | -9/Materials | Build established: Mutant 3740 | -9/Materials | Discovered new exit (range 3) 3742 | -9/Materials | Build established: Scavenger-Mutant 3830 | -9/Materials | Repaired Lgt. Armor Plating 3857 | -9/Materials | Repaired Lgt. Armor Plating 4098 | -9/Materials | Repaired Lgt. Treads 4235 | -9/Materials | Discovered new exit (range 15) 4449 | -9/Materials | Entered Mines 4452 | -9/Mines | Received a Mining Laser from a helpful Derelict 4490 | -9/Mines | Assisted by bots powering up and referring to "LRC-V3" 4602 | -9/Mines | Learned Materials security intel 4614 | -9/Mines | Core integrity fell below 50% 4669 | -9/Mines | Excavation squad dispatched 4669 | -9/Mines | A large section of the Mines collapsed 4919 | -9/Mines | Excavation squad dispatched 5169 | -9/Mines | Excavation squad dispatched 5419 | -9/Mines | Excavation squad dispatched 5473 | -9/Mines | Discovered new exit (range 15) 5505 | -9/Mines | Discovered new exit (range 15) 5591 | -9/Mines | Deemed a non-threat by the Exiles lab entrance 5772 | -9/Mines | Discovered new exit (range 5) 5778 | -9/Mines | Entered Exiles 5778 | -9/Exiles | Accompanied by 2 allies 5818 | -9/Exiles | Met 8R-AWN 5844 | -9/Exiles | Met EX-HEX 5894 | -9/Exiles | Met EX-BIN 5911 | -9/Exiles | Aligned with FarCom system 5913 | -9/Exiles | Given EX-Vault access code 5950 | -9/Exiles | Opened EX-Vault 5959 | -9/Exiles | Found Prototype Energy Cannon 5961 | -9/Exiles | Identified Firepult 5969 | -9/Exiles | Found Prototype Device 5970 | -9/Exiles | Identified Skeleton Box 5980 | -9/Exiles | Found Prototype Device 5981 | -9/Exiles | Identified Chronowheel 5981 | -9/Exiles | Activated Chronowheel 6028 | -9/Exiles | Warned to stay clear of 0b10 Research branches 6030 | -9/Exiles | Exiles lab attacked by MAIN.C 6223 | -9/Exiles | Discovered new exit (range 14) 6230 | -9/Exiles | Lost 3 allies 6254 | -9/Exiles | Left Exiles lab with Firepult 6254 | -9/Exiles | Entered Mines 6488 | -8/Mines | Discovered new exit (range 10) 7050 | -8/Mines | Discovered new exit (range 7) 7327 | -8/Mines | Entered Materials 7327 | -8/Materials | Evolved 2 slots: Utility x2 7824 | -8/Materials | Build established: Mutant 8244 | -8/Materials | Repaired Adv. Treads 8284 | -8/Materials | Repaired Adv. Treads 8462 | -8/Materials | Garrison activated, responded to threat 8480 | -8/Materials | Discovered new exit (range 16) 8661 | -8/Materials | Discovered new exit (range 16) 9363 | -8/Materials | Entered Factory 9363 | -7/Factory | Evolved 2 slots: Utility x2 9829 | -7/Factory | Repaired Adv. Heat Sink 9868 | -7/Factory | Repaired Imp. Propulsion Shielding 10003 | -7/Factory | Build established: Hacker-Mutant 10420 | -7/Factory | Fabricated Hrd. Medium Armor Plating (x1) 11080 | -7/Factory | Fabricated System Restoration Module? 11765 | -7/Factory | Garrison activated, responded to threat 12003 | -7/Factory | Identified exit to Garrison 12003 | -7/Factory | Entered Garrison 12109 | -7/Garrison | Triggered checkpoint 12142 | -7/Garrison | Garrison Relay disabled 12369 | -7/Garrison | Triggered checkpoint 12437 | -7/Garrison | Triggered checkpoint 12596 | -7/Garrison | Discovered new exit (range 12) 12633 | -7/Garrison | Triggered checkpoint 12691 | -7/Garrison | Discovered new exit (range 5) 12838 | -7/Garrison | Triggered checkpoint 13152 | -7/Garrison | Lost 3 allies 13179 | -7/Garrison | Garrison Relay disabled 13372 | -7/Garrison | Triggered checkpoint 13406 | -7/Garrison | Discovered new exit (range 15) 13669 | -7/Garrison | Lost 3 parts (1n1u1w) 13669 | -7/Garrison | Installed Relay Interface Framework 13822 | -7/Garrison | Discovered new exit (range 14) 13837 | -7/Garrison | Expanded RIF knowledge: Zone Cloak 13967 | -7/Garrison | Build established: Scavenger-Mutant 14015 | -7/Garrison | Triggered checkpoint 14123 | -7/Garrison | Garrison Relay disabled 14133 | -7/Garrison | Triggered checkpoint 14251 | -7/Garrison | Triggered checkpoint 14282 | -7/Garrison | Garrison Relay disabled 14320 | -7/Garrison | Entered Factory 14685 | -7/Factory | Discovered new exit (range 5) 14876 | -7/Factory | Core integrity fell below 50% 14894 | -7/Factory | Fabricated Hrd. Medium Armor Plating? 15351 | -7/Factory | Build established: Hacker-Mutant 16120 | -7/Factory | Central database locked down 16350 | -7/Factory | First assault squad dispatched 16553 | -7/Factory | Entered Lower Caves 16774 | -7/Lower Caves | Attracted the attention of an 0b10 outpost 16828 | -7/Lower Caves | Lost 4 parts (1p1n1u1w) 17020 | -7/Lower Caves | Attracted the attention of an 0b10 checkpoint 17022 | -7/Lower Caves | Core integrity fell below 20% 17104 | -7/Lower Caves | Spotted B-75 Beast 17174 | -7/Lower Caves | Destroyed by Y-54 Guardian with Gatling Laser Last Messages --------------- Dropped Imp. Heat Sink. Dropped Med. Storage Unit. Acquired 1 matter. GZ#WHCD3AVE9S|SUDPX